[Event "DVM U14w 2019"]
[Site "Neumuenster"]
[Date "2019.12.29"]
[Round "6"]
[White "Nguyen, Jenny Ha-Linh"]
[Black "Sinner, Joselyne"]
[Result "1/2-1/2"]
[ECO "C54"]
[WhiteElo "1387"]
[BlackElo "1407"]
[Annotator "NA"]
[PlyCount "49"]
[EventDate "2019.12.27"]
[EventType "team-tourn"]
[EventRounds "7"]
[EventCountry "GER"]
[SourceTitle "playchess.com"]
[Source "ChessBase"]
[SourceQuality "1"]
[WhiteTeam "SG Leipzig"]
[BlackTeam "SG Porz"]
[WhiteTeamCountry "GER"]
[BlackTeamCountry "GER"]
[TimeControl "40/5400+30:1800+30"]

1. e4 {[%emt 0:00:00]} e5 {[%emt 0:00:00]} 2. Nf3 {[%emt 0:00:30]} Nc6 {[%emt 0:00:30]} 3. Bc4 {[%emt 0:00:00]} Bc5 {[%emt 0:00:00]} 4. c3 {[%emt 0:00:00]} Nf6 {[%emt 0:00:00]} 5. d3 {[%emt 0:00:00]} d6 {[%emt 0:00:00]} 6. h3 {[%emt 0:00:00]} a6 {[%emt 0:01:31]} 7. Bb3 {[%emt 0:00:00]} Ba7 {[%emt 0:01:54]} 8. O-O {[%emt 0:00:22]} Be6 {[%emt 0:01:37]} 9. Bc2 {[%emt 0:00:36]} Qd7 {[%emt 0:01:31]} 10. a4 {[%emt 0:01:42]} h6 {[%emt 0:01:55]} 11. Na3 {[%emt 0:04:56]} g5 {[%emt 0:03:52]} 12. d4 {[%emt 0:13:51]} g4 {[%emt 0:14:37]} 13. hxg4 {[%emt 0:14:56]} Bxg4 {[%emt 0:00:49]} 14. dxe5 {[%emt 0:03:20]} Nxe5 {[%emt 0:03:02]} 15. Nxe5 {[%emt 0:02:42]} dxe5 {[%emt 0:02:18]} 16. Qxd7+ {[%emt 0:00:15]} Kxd7 {[%emt 0:00:40]} 17. Nc4 {[%emt 0:00:14]} Rae8 {[%emt 0:01:26]} 18. Ne3 {[%emt 0:01:55]} Be6 {[%emt 0:02:12]} 19. Nf5 {[%emt 0:00:42]} Rh7 {[%emt 0:10:21]} 20. Be3 {[%emt 0:07:31]} Bxe3 {[%emt 0:04:19]} 21. Nxe3 {[%emt 0:00:23]} Kc8 {[%emt 0:02:52]} 22. Rad1 {[%emt 0:04:48]} h5 {[%emt 0:12:27]} 23. Nd5 {[%emt 0:19:37]} Nd7 {[%emt 0:12:00]} 24. f3 {[%emt 0:04:28]} h4 {[%emt 0:07:23]} 25. Kf2 {[%emt 0:03:41] normal} 1/2-1/2

[Event "DVM U14w 2019"]
[Site "Neumuenster"]
[Date "2019.12.29"]
[Round "6"]
[White "Kluehs, Isabel"]
[Black "Albrecht, Angelique"]
[Result "1-0"]
[ECO "D05"]
[WhiteElo "1363"]
[BlackElo "1219"]
[Annotator "NA"]
[PlyCount "161"]
[EventDate "2019.12.27"]
[EventType "team-tourn"]
[EventRounds "7"]
[EventCountry "GER"]
[SourceTitle "playchess.com"]
[Source "ChessBase"]
[SourceQuality "1"]
[WhiteTeam "SC Borussia Lichtenberg"]
[BlackTeam "SV Multatuli Ingelheim"]
[WhiteTeamCountry "GER"]
[TimeControl "40/5400+30:1800+30"]

1. d4 {[%emt 0:00:00]} d5 {[%emt 0:00:00]} 2. Nf3 {[%emt 0:00:00]} Nf6 {[%emt 0:00:00]} 3. e3 {[%emt 0:00:00]} c5 {[%emt 0:00:18]} 4. c3 {[%emt 0:00:00]} e6 {[%emt 0:00:14]} 5. Bd3 {[%emt 0:00:00]} Bd6 {[%emt 0:00:10]} 6. Nbd2 {[%emt 0:00:00]} Nc6 {[%emt 0:00:55]} 7. e4 {[%emt 0:01:23]} cxd4 {[%emt 0:03:23]} 8. Nxd4 {[%emt 0:01:08]} e5 {[%emt 0:05:52]} 9. Nxc6 {[%emt 0:00:56]} bxc6 {[%emt 0:00:15]} 10. O-O {[%emt 0:00:13]} O-O {[%emt 0:00:22]} 11. Re1 {[%emt 0:01:36]} Re8 {[%emt 0:01:28]} 12. h3 {[%emt 0:00:42]} Bc5 {[%emt 0:02:19]} 13. exd5 cxd5 {[%emt 0:01:20]} 14. Nb3 {[%emt 0:02:40]} Bd6 {[%emt 0:01:52]} 15. Bc2 {[%emt 0:05:08]} Ba6 {[%emt 0:02:04]} 16. Qf3 {[%emt 0:02:34]} Qe7 {[%emt 0:04:28]} 17. Bg5 {[%emt 0:00:54]} e4 {[%emt 0:00:44]} 18. Bxf6 {[%emt 0:01:35]} exf3 {[%emt 0:00:42]} 19. Bxe7 {[%emt 0:00:19]} Rxe7 {[%emt 0:00:08]} 20. gxf3 {[%emt 0:00:44]} Rae8 {[%emt 0:00:22]} 21. Rxe7 {[%emt 0:00:46]} Rxe7 {[%emt 0:00:07]} 22. Nd4 {[%emt 0:00:22]} Bc5 {[%emt 0:02:57]} 23. Rd1 {[%emt 0:00:47]} g6 {[%emt 0:02:32]} 24. Kg2 {[%emt 0:00:52]} Bxd4 {[%emt 0:02:20]} 25. cxd4 {[%emt 0:00:46]} Re2 {[%emt 0:00:16]} 26. Bb3 {[%emt 0:01:24]} Rxb2 {[%emt 0:01:21]} 27. Bxd5 {[%emt 0:00:15]} Rb5 {[%emt 0:02:08]} 28. Bb3 {[%emt 0:00:11]} Kf8 {[%emt 0:00:43]} 29. d5 {[%emt 0:00:18]} Rb8 {[%emt 0:01:44]} 30. Rc1 {[%emt 0:01:50]} Ke7 {[%emt 0:00:55]} 31. Rc7+ {[%emt 0:00:00]} Kd8 {[%emt 0:01:18]} 32. Rxf7 {[%emt 0:00:09]} Rb7 {[%emt 0:00:33]} 33. Rxb7 {[%emt 0:00:54]} Bxb7 {[%emt 0:00:06]} 34. Kg3 {[%emt 0:01:11]} Kd7 {[%emt 0:00:23]} 35. Kf4 {[%emt 0:00:35]} Kd6 {[%emt 0:01:43]} 36. Ke4 {[%emt 0:00:09]} h6 {[%emt 0:00:24]} 37. f4 {[%emt 0:00:17]} Bc8 {[%emt 0:00:19]} 38. h4 {[%emt 0:00:35]} Bf5+ {[%emt 0:00:19]} 39. Kd4 {[%emt 0:00:15]} h5 {[%emt 0:00:43]} 40. Ba4 {[%emt 0:01:44]} Bg4 {[%emt 0:01:32]} 41. Be8 {[%emt 0:31:04]} Bf5 {[%emt 0:30:22]} 42. Bf7 {[%emt 0:01:00]} a6 {[%emt 0:03:29]} 43. a3 {[%emt 0:01:59]} a5 {[%emt 0:01:48]} 44. f3 {[%emt 0:02:55]} Ke7 {[%emt 0:00:57]} 45. Bg8 {[%emt 0:00:37]} Kd6 {[%emt 0:00:38]} 46. Kc4 {[%emt 0:10:14]} Bd7 {[%emt 0:12:52]} 47. Bf7 {[%emt 0:01:31]} Bf5 {[%emt 0:00:27]} 48. Kd4 {[%emt 0:00:32]} Ke7 {[%emt 0:00:15]} 49. Bg8 Kd6 50. Ke3 {[%emt 0:04:11]} Ke7 {[%emt 0:01:27]} 51. Kd4 {[%emt 0:05:06]} Kd6 {[%emt 0:00:07]} 52. Kc4 {[%emt 0:02:26]} Bd7 {[%emt 0:00:25]} 53. Bf7 {[%emt 0:00:28]} Bf5 {[%emt 0:00:08]} 54. Be8 {[%emt 0:00:21]} Ke7 {[%emt 0:00:12]} 55. Bb5 {[%emt 0:00:26]} Kd6 {[%emt 0:00:27]} 56. Kd4 {[%emt 0:00:19]} Bc2 {[%emt 0:00:37]} 57. Bc6 {[%emt 0:01:45]} Bf5 {[%emt 0:00:37]} 58. Ba4 {[%emt 0:02:46]} Bh3 {[%emt 0:00:51]} 59. Bc2 {[%emt 0:00:17]} Bf5 {[%emt 0:00:31]} 60. Be4 {[%emt 0:01:05]} a4 {[%emt 0:00:56]} 61. Kc4 {[%emt 0:00:46]} Ke7 {[%emt 0:03:36]} 62. Bxf5 {[%emt 0:01:04]} gxf5 {[%emt 0:00:11]} 63. Kc5 {[%emt 0:00:12]} Kd7 {[%emt 0:00:11]} 64. d6 {[%emt 0:00:21]} Kd8 {[%emt 0:00:31]} 65. Kd5 {[%emt 0:00:15]} Kd7 {[%emt 0:00:13]} 66. Ke5 {[%emt 0:00:05]} Kd8 {[%emt 0:01:27]} 67. Kxf5 {[%emt 0:00:08]} Kd7 {[%emt 0:00:08]} 68. Ke5 {[%emt 0:00:04]} Ke8 {[%emt 0:00:16]} 69. Ke6 {[%emt 0:00:07]} Kd8 {[%emt 0:00:06]} 70. d7 {[%emt 0:00:03]} Kc7 {[%emt 0:00:11]} 71. Ke7 {[%emt 0:00:05]} Kc6 {[%emt 0:00:07]} 72. d8=Q {[%emt 0:00:15]} Kc5 {[%emt 0:00:07]} 73. Ke6 {[%emt 0:00:09]} Kc4 {[%emt 0:00:20]} 74. Ke5 {[%emt 0:00:08]} Kc3 75. Ke4 Kc4 {[%emt 0:00:57]} 76. Qc8+ {[%emt 0:00:52]} Kb3 {[%emt 0:00:13]} 77. Kd3 {[%emt 0:00:11]} Kxa3 {[%emt 0:00:07]} 78. Kc3 {[%emt 0:00:14]} Ka2 {[%emt 0:00:08]} 79. Qb8 {[%emt 0:00:06]} a3 {[%emt 0:00:17]} 80. Kc2 {[%emt 0:00:37]} Ka1 {[%emt 0:00:09]} 81. Qb1# {normal} 1-0

[Event "DVM U14w 2019"]
[Site "Neumuenster"]
[Date "2019.12.29"]
[Round "6"]
[White "Hellenbroich, Helene"]
[Black "Werner, Rosalie"]
[Result "0-1"]
[ECO "C01"]
[WhiteElo "1346"]
[BlackElo "1674"]
[Annotator "NA"]
[PlyCount "53"]
[EventDate "2019.12.27"]
[EventType "team-tourn"]
[EventRounds "7"]
[EventCountry "GER"]
[SourceTitle "playchess.com"]
[Source "ChessBase"]
[SourceQuality "1"]
[WhiteTeam "Lübecker SV"]
[BlackTeam "VSG 1880 Offenbach"]
[WhiteTeamCountry "GER"]
[BlackTeamCountry "GER"]
[TimeControl "40/5400+30:1800+30"]

1. e4 {[%emt 0:00:00]} e6 {[%emt 0:00:00]} 2. d4 {[%emt 0:00:00]} d5 {[%emt 0:00:00]} 3. exd5 {[%emt 0:00:00]} exd5 {[%emt 0:00:00]} 4. Bd3 {[%emt 0:00:00]} Bd6 {[%emt 0:00:00]} 5. Nf3 {[%emt 0:00:00]} Ne7 {[%emt 0:00:00]} 6. O-O {[%emt 0:00:21]} O-O {[%emt 0:00:56]} 7. Ng5 {[%emt 0:00:37]} Bf5 {[%emt 0:02:37]} 8. Bxf5 {[%emt 0:00:36]} Nxf5 9. Qd3 {[%emt 0:01:48]} Qf6 {[%emt 0:23:46]} 10. Nf3 {[%emt 0:03:20]} c6 {[%emt 0:04:04]} 11. c3 {[%emt 0:01:23]} Nd7 {[%emt 0:02:05]} 12. Re1 {[%emt 0:01:14]} Rae8 {[%emt 0:01:51]} 13. Rxe8 {[%emt 0:00:21]} Rxe8 {[%emt 0:00:13]} 14. Na3 {[%emt 0:01:51]} Nh4 {[%emt 0:07:32]} 15. Bd2 {[%emt 0:01:50]} Nxf3+ {[%emt 0:01:06]} 16. Qxf3 {[%emt 0:00:24]} Qxf3 {[%emt 0:01:53]} 17. gxf3 {[%emt 0:00:07]} Re2 {[%emt 0:00:42]} 18. Rd1 {[%emt 0:01:55]} Nb6 {[%emt 0:04:43]} 19. Kf1 {[%emt 0:00:50]} Re6 {[%emt 0:00:22]} 20. Nc2 {[%emt 0:00:37]} Bxh2 {[%emt 0:02:12]} 21. f4 {[%emt 0:01:16]} Nc4 {[%emt 0:00:14]} 22. Bc1 {[%emt 0:00:42]} Rf6 {[%emt 0:01:38]} 23. b3 {[%emt 0:01:30]} Nd6 {[%emt 0:00:48]} 24. c4 {[%emt 0:01:15]} Bxf4 {[%emt 0:04:58]} 25. Bxf4 {[%emt 0:00:16]} Rxf4 {[%emt 0:00:08]} 26. cxd5 {[%emt 0:00:05]} cxd5 {[%emt 0:00:13]} 27. Ne3 {normal} 0-1

[Event "DVM U14w 2019"]
[Site "Neumuenster"]
[Date "2019.12.29"]
[Round "6"]
[White "Alscher, Anouk"]
[Black "Dixon Quiroz, Laura Michaela"]
[Result "0-1"]
[ECO "C50"]
[WhiteElo "1110"]
[BlackElo "1310"]
[Annotator "NA"]
[PlyCount "70"]
[EventDate "2019.12.27"]
[EventType "team-tourn"]
[EventRounds "7"]
[EventCountry "GER"]
[SourceTitle "playchess.com"]
[Source "ChessBase"]
[SourceQuality "1"]
[WhiteTeam "Lübecker SV"]
[BlackTeam "VSG 1880 Offenbach"]
[BlackTeamCountry "GER"]
[TimeControl "40/5400+30:1800+30"]

1. e4 {[%emt 0:00:00]} e5 {[%emt 0:00:00]} 2. Nf3 {[%emt 0:00:00]} Nc6 {[%emt 0:00:00]} 3. Bc4 {[%emt 0:00:00]} Bc5 {[%emt 0:00:00]} 4. Nc3 {[%emt 0:00:07]} d6 {[%emt 0:00:30]} 5. h3 {[%emt 0:00:43]} Nf6 {[%emt 0:00:38]} 6. d3 {[%emt 0:00:11]} h6 {[%emt 0:00:12]} 7. Be3 {[%emt 0:00:43]} Bb6 {[%emt 0:00:08]} 8. Bxb6 {[%emt 0:00:24]} axb6 {[%emt 0:00:15]} 9. O-O {[%emt 0:00:50]} O-O {[%emt 0:00:19]} 10. Qd2 {[%emt 0:01:04]} Be6 {[%emt 0:02:39]} 11. Bb3 {[%emt 0:00:37]} Qe7 {[%emt 0:02:02]} 12. d4 {[%emt 0:01:41]} exd4 {[%emt 0:01:07]} 13. Nxd4 {[%emt 0:00:22]} Nxe4 {[%emt 0:08:38]} 14. Nxe4 {[%emt 0:00:44]} Bxb3 {[%emt 0:00:27]} 15. Nxc6 {[%emt 0:00:43]} bxc6 {[%emt 0:00:27]} 16. axb3 {[%emt 0:01:03]} Rxa1 {[%emt 0:01:16]} 17. Rxa1 {[%emt 0:00:09]} Qxe4 {[%emt 0:00:12]} 18. Re1 {[%emt 0:00:50]} Qd5 {[%emt 0:02:38]} 19. Qc3 {[%emt 0:00:55]} c5 {[%emt 0:02:35]} 20. Re7 {[%emt 0:01:22]} Rc8 {[%emt 0:00:35]} 21. Qg3 {[%emt 0:01:46]} Qg5 {[%emt 0:02:51]} 22. Qxg5 {[%emt 0:00:36]} hxg5 {[%emt 0:00:08]} 23. c4 {[%emt 0:00:23]} Kf8 {[%emt 0:00:18]} 24. Re3 {[%emt 0:00:24]} Re8 {[%emt 0:00:54]} 25. Rxe8+ {[%emt 0:01:48]} Kxe8 {[%emt 0:00:07]} 26. g4 {[%emt 0:00:08]} c6 {[%emt 0:00:22]} 27. Kg2 {[%emt 0:00:09]} d5 {[%emt 0:00:35]} 28. Kg3 {[%emt 0:00:21]} g6 {[%emt 0:01:02]} 29. f4 {[%emt 0:00:21]} f6 {[%emt 0:00:15]} 30. h4 {[%emt 0:00:35]} gxh4+ {[%emt 0:02:13]} 31. Kxh4 {[%emt 0:00:09]} Ke7 {[%emt 0:01:16]} 32. g5 {[%emt 0:01:21]} d4 {[%emt 0:02:19]} 33. f5 {[%emt 0:00:23]} gxf5 {[%emt 0:00:14]} 34. g6 {[%emt 0:00:09]} Kf8 {[%emt 0:00:17]} 35. Kh5 {[%emt 0:00:11]} Kg7 {[%emt 0:00:25] normal} 0-1

[Event "DVM U14w 2019"]
[Site "Neumuenster"]
[Date "2019.12.29"]
[Round "6"]
[White "Gyácsok, Dzvinka"]
[Black "Hafermann, Lara"]
[Result "0-1"]
[ECO "B00"]
[WhiteElo "997"]
[BlackElo "1161"]
[Annotator "NA"]
[PlyCount "121"]
[EventDate "2019.12.27"]
[EventType "team-tourn"]
[EventRounds "7"]
[EventCountry "GER"]
[SourceTitle "playchess.com"]
[Source "ChessBase"]
[SourceQuality "1"]
[WhiteTeam "SV Multatuli Ingelheim"]
[BlackTeam "SC Borussia Lichtenberg"]
[TimeControl "40/5400+30:1800+30"]

1. e4 {[%emt 0:00:00]} b6 {[%emt 0:00:00]} 2. d4 {[%emt 0:00:00]} Bb7 {[%emt 0:00:00]} 3. Nc3 {[%emt 0:00:00]} e6 {[%emt 0:00:00]} 4. Nf3 {[%emt 0:00:44]} Nf6 {[%emt 0:00:00]} 5. Bd3 {[%emt 0:00:29]} Bb4 {[%emt 0:00:00]} 6. a3 {[%emt 0:00:49]} Bxc3+ {[%emt 0:00:04]} 7. bxc3 {[%emt 0:01:01]} Nxe4 {[%emt 0:00:09]} 8. Bb2 {[%emt 0:01:26]} Nf6 {[%emt 0:01:41]} 9. O-O {[%emt 0:00:52]} d6 {[%emt 0:01:33]} 10. Re1 {[%emt 0:01:16]} O-O {[%emt 0:01:08]} 11. h3 {[%emt 0:01:53]} c5 {[%emt 0:01:58]} 12. Nh4 {[%emt 0:07:01]} Nbd7 {[%emt 0:06:18]} 13. f4 {[%emt 0:01:55]} Nd5 {[%emt 0:05:30]} 14. Qh5 {[%emt 0:04:55]} h6 {[%emt 0:01:30]} 15. Qg4 {[%emt 0:04:36]} N5f6 {[%emt 0:05:44]} 16. Qg3 {[%emt 0:02:00]} Re8 {[%emt 0:02:31]} 17. f5 {[%emt 0:04:20]} e5 {[%emt 0:09:29]} 18. Bc4 {[%emt 0:05:04]} Ne4 {[%emt 0:07:53]} 19. Qg6 {[%emt 0:10:21]} Qf6 {[%emt 0:04:59]} 20. Bc1 {[%emt 0:14:58]} exd4 21. cxd4 {[%emt 0:08:40]} d5 {[%emt 0:04:14]} 22. Qxf6 {[%emt 0:01:04]} Nexf6 {[%emt 0:00:16]} 23. Rxe8+ {[%emt 0:01:33]} Rxe8 {[%emt 0:00:03]} 24. Bd3 {[%emt 0:02:40]} c4 {[%emt 0:00:17]} 25. Bf1 {[%emt 0:00:53]} Bc8 {[%emt 0:06:18]} 26. Kf2 {[%emt 0:05:38]} Ne4+ {[%emt 0:04:28]} 27. Ke2 {[%emt 0:02:01]} Ndf6 {[%emt 0:01:41]} 28. Bf4 {[%emt 0:01:32]} Ng3+ {[%emt 0:00:37]} 29. Kf2 {[%emt 0:00:50]} Nxf1 {[%emt 0:00:14]} 30. Rxf1 {[%emt 0:00:51]} Re4 {[%emt 0:00:25]} 31. g3 {[%emt 0:00:55]} Rxd4 {[%emt 0:00:42]} 32. Bb8 {[%emt 0:00:50]} Rd2+ {[%emt 0:01:55]} 33. Kg1 {[%emt 0:00:17]} Rxc2 {[%emt 0:00:34]} 34. Bxa7 {[%emt 0:00:11]} Rc3 {[%emt 0:00:33]} 35. Rf3 {[%emt 0:01:13]} Rxf3 {[%emt 0:00:22]} 36. Nxf3 {[%emt 0:00:06]} b5 {[%emt 0:00:16]} 37. Nd4 {[%emt 0:00:32]} Bd7 {[%emt 0:00:35]} 38. g4 {[%emt 0:01:13]} g6 {[%emt 0:04:06]} 39. Bb8 {[%emt 0:03:45]} h5 {[%emt 0:03:47]} 40. g5 {[%emt 0:01:32]} Ne4 {[%emt 0:00:28]} 41. h4 {[%emt 0:30:22]} Bxf5 {[%emt 0:31:30]} 42. Nxb5 {[%emt 0:01:09]} c3 {[%emt 0:12:34]} 43. Nd4 {[%emt 0:02:55]} Kf8 {[%emt 0:03:51]} 44. a4 {[%emt 0:00:54]} Ke8 {[%emt 0:02:14]} 45. a5 {[%emt 0:01:32]} Kd8 {[%emt 0:01:09]} 46. a6 {[%emt 0:00:00]} Kc8 {[%emt 0:00:00]} 47. a7 {[%emt 0:00:00]} Kb7 {[%emt 0:00:00]} 48. Kf1 {[%emt 0:00:00]} Nc5 {[%emt 0:00:00]} 49. Ne2 {[%emt 0:00:00]} c2 {[%emt 0:00:00]} 50. Ke1 {[%emt 0:00:00]} d4 {[%emt 0:00:00]} 51. Nc1 {[%emt 0:00:00]} Nd7 {[%emt 0:00:00]} 52. Bf4 {[%emt 0:00:00]} Kxa7 {[%emt 0:00:00]} 53. Kd2 {[%emt 0:00:00]} Nc5 {[%emt 0:00:00]} 54. Be5 {[%emt 0:00:00]} Kb6 {[%emt 0:00:00]} 55. Bxd4 {[%emt 0:00:00]} Kc6 {[%emt 0:00:00]} 56. Be3 {[%emt 0:00:00]} Kd5 {[%emt 0:00:00]} 57. Bf4 {[%emt 0:00:00]} Ne6 {[%emt 0:00:00]} 58. Be3 {[%emt 0:00:00]} Nd4 {[%emt 0:00:00]} 59. Bf2 {[%emt 0:00:00]} Kc4 {[%emt 0:00:00]} 60. Ke3 {[%emt 0:00:00]} Nb3 {[%emt 0:00:00]} 61. Na2 {[%emt 0:00:00] normal} 0-1

[Event "DVM U14w 2019"]
[Site "Neumuenster"]
[Date "2019.12.29"]
[Round "6"]
[White "Popovidou, Laura"]
[Black "Halas, Neele Zoe"]
[Result "0-1"]
[ECO "C01"]
[WhiteElo "931"]
[BlackElo "1076"]
[Annotator "NA"]
[PlyCount "110"]
[EventDate "2019.12.27"]
[EventType "team-tourn"]
[EventRounds "7"]
[EventCountry "GER"]
[SourceTitle "playchess.com"]
[Source "ChessBase"]
[SourceQuality "1"]
[WhiteTeam "SG Porz"]
[BlackTeam "SG Leipzig"]
[TimeControl "40/5400+30:1800+30"]

1. e4 {[%emt 0:00:00]} e6 {[%emt 0:00:00]} 2. d4 {[%emt 0:02:06]} d5 {[%emt 0:00:00]} 3. exd5 {[%emt 0:00:40]} exd5 {[%emt 0:00:00]} 4. Nc3 {[%emt 0:00:28]} Bb4 {[%emt 0:04:24]} 5. Bd2 {[%emt 0:04:49]} Nf6 {[%emt 0:06:13]} 6. Bd3 {[%emt 0:05:27]} Nc6 {[%emt 0:02:30]} 7. Nge2 {[%emt 0:03:42]} Qe7 {[%emt 0:02:51]} 8. a3 {[%emt 0:14:46]} Bxc3 {[%emt 0:00:22]} 9. bxc3 {[%emt 0:01:24]} O-O {[%emt 0:06:17]} 10. O-O {[%emt 0:02:06]} Ne4 {[%emt 0:00:44]} 11. Bf4 {[%emt 0:07:03]} Nd6 {[%emt 0:03:45]} 12. Re1 {[%emt 0:01:52]} Qf6 {[%emt 0:04:01]} 13. Qd2 {[%emt 0:01:58]} Bd7 {[%emt 0:01:57]} 14. Bg5 {[%emt 0:01:51]} Qe6 {[%emt 0:01:43]} 15. Ng3 {[%emt 0:02:07]} Rfe8 {[%emt 0:02:49]} 16. Rxe6 {[%emt 0:01:24]} Rxe6 {[%emt 0:00:41]} 17. Qd1 {[%emt 0:06:42]} f6 {[%emt 0:06:04]} 18. Bd2 {[%emt 0:04:53]} Rae8 {[%emt 0:03:25]} 19. Qh5 {[%emt 0:00:48]} g6 {[%emt 0:02:19]} 20. Qh4 {[%emt 0:16:01]} Nd8 {[%emt 0:04:47]} 21. h3 {[%emt 0:03:06]} N8f7 {[%emt 0:02:15]} 22. f4 {[%emt 0:05:15]} Kg7 23. Kf1 {[%emt 0:01:19]} Bb5 {[%emt 0:04:47]} 24. Bxb5 {[%emt 0:01:28]} Nxb5 {[%emt 0:00:16]} 25. f5 {[%emt 0:00:45]} Rc6 {[%emt 0:02:15]} 26. fxg6 {[%emt 0:00:53]} hxg6 {[%emt 0:00:15]} 27. Ne2 {[%emt 0:00:23]} Re4 {[%emt 0:01:18]} 28. Qg3 {[%emt 0:00:21]} Rce6 {[%emt 0:01:06]} 29. Nf4 {[%emt 0:00:48]} Rc6 {[%emt 0:02:39]} 30. Nh5+ {[%emt 0:00:47]} Kh7 {[%emt 0:01:33]} 31. a4 {[%emt 0:01:26]} Nxc3 {[%emt 0:02:50]} 32. Bxc3 {[%emt 0:00:09]} gxh5 {[%emt 0:00:08]} 33. Re1 {[%emt 0:00:50]} Rxe1+ {[%emt 0:00:29]} 34. Kxe1 {[%emt 0:00:12]} Re6+ {[%emt 0:00:53]} 35. Kf2 {[%emt 0:00:20]} Rc6 {[%emt 0:00:36]} 36. Qd3+ {[%emt 0:00:27]} Kg7 {[%emt 0:01:00]} 37. Bd2 {[%emt 0:00:28]} Ng5 {[%emt 0:02:53]} 38. Bxg5 {[%emt 0:00:41]} fxg5 {[%emt 0:00:12]} 39. g4 {[%emt 0:00:35]} hxg4 {[%emt 0:01:13]} 40. hxg4 {[%emt 0:00:07]} Kf7 {[%emt 0:01:09]} 41. Qf5+ {[%emt 0:30:33]} Rf6 {[%emt 0:30:08]} 42. Qxf6+ {[%emt 0:00:57]} Kxf6 {[%emt 0:00:07]} 43. Ke3 {[%emt 0:00:26]} Ke6 {[%emt 0:00:21]} 44. Kd3 {[%emt 0:00:07]} Kd6 {[%emt 0:01:03]} 45. Kc3 {[%emt 0:00:24]} c5 {[%emt 0:00:55]} 46. dxc5+ {[%emt 0:00:35]} Kxc5 {[%emt 0:00:07]} 47. Kb3 {[%emt 0:00:12]} a5 {[%emt 0:01:07]} 48. Kc3 {[%emt 0:00:24]} d4+ {[%emt 0:01:49]} 49. Kd3 {[%emt 0:00:46]} Kd5 {[%emt 0:00:11]} 50. c4+ {[%emt 0:00:46]} dxc3 {[%emt 0:00:09]} 51. Kxc3 {[%emt 0:00:24]} Kc5 {[%emt 0:00:10]} 52. Kb3 {[%emt 0:00:06]} b5 {[%emt 0:02:24]} 53. Ka3 {[%emt 0:00:28]} bxa4 {[%emt 0:01:11]} 54. Kxa4 {[%emt 0:00:12]} Kd4 {[%emt 0:00:09]} 55. Kxa5 {[%emt 0:00:08]} Ke4 {[%emt 0:00:08] normal} 0-1

[Event "DVM U14w 2019"]
[Site "Neumuenster"]
[Date "2019.12.29"]
[Round "6"]
[White "Kube, Maja"]
[Black "Voigt, Anastasia"]
[Result "0-1"]
[ECO "C54"]
[WhiteElo "923"]
[BlackElo "1511"]
[Annotator "NA"]
[PlyCount "72"]
[EventDate "2019.12.27"]
[EventType "team-tourn"]
[EventRounds "7"]
[EventCountry "GER"]
[SourceTitle "playchess.com"]
[Source "ChessBase"]
[SourceQuality "1"]
[WhiteTeam "SC Papenburg"]
[BlackTeam "USV Halle"]
[BlackTeamCountry "GER"]
[TimeControl "40/5400+30:1800+30"]

1. e4 {[%emt 0:00:00]} e5 {[%emt 0:00:00]} 2. Nf3 {[%emt 0:00:00]} Nc6 {[%emt 0:00:00]} 3. Bc4 {[%emt 0:00:00]} Bc5 {[%emt 0:00:00]} 4. c3 {[%emt 0:00:00]} Nf6 {[%emt 0:00:00]} 5. d4 {[%emt 0:00:07]} exd4 {[%emt 0:00:01]} 6. cxd4 {[%emt 0:00:12]} Bb4+ {[%emt 0:00:08]} 7. Bd2 {[%emt 0:00:12]} Bxd2+ {[%emt 0:00:07]} 8. Nbxd2 {[%emt 0:00:10]} d5 {[%emt 0:00:06]} 9. exd5 {[%emt 0:00:35]} Nxd5 {[%emt 0:00:07]} 10. O-O {[%emt 0:02:37]} O-O {[%emt 0:00:20]} 11. Ne5 {[%emt 0:03:30]} Nxd4 {[%emt 0:02:49]} 12. Nb3 {[%emt 0:05:25]} Nxb3 {[%emt 0:00:11]} 13. Bxd5 {[%emt 0:01:49]} Qf6 {[%emt 0:20:08]} 14. Qxb3 {[%emt 0:14:05]} Qxe5 {[%emt 0:00:47]} 15. Bxf7+ {[%emt 0:01:14]} Kh8 {[%emt 0:07:50]} 16. Rae1 {[%emt 0:11:41]} Qf6 {[%emt 0:05:30]} 17. Be6 {[%emt 0:08:28]} b6 {[%emt 0:02:10]} 18. Qd5 {[%emt 0:04:59]} Ba6 {[%emt 0:02:57]} 19. f3 {[%emt 0:20:30]} Bxf1 {[%emt 0:01:23]} 20. Kxf1 {[%emt 0:01:48]} Qd8 {[%emt 0:09:13]} 21. Qh5 {[%emt 0:07:40]} Qd3+ {[%emt 0:03:23]} 22. Re2 {[%emt 0:04:16]} Rae8 {[%emt 0:10:43]} 23. Kf2 {[%emt 0:03:26]} Qg6 {[%emt 0:06:35]} 24. Qh3 {[%emt 0:03:34]} h6 {[%emt 0:01:50]} 25. g3 {[%emt 0:01:04]} Qf6 {[%emt 0:01:16]} 26. f4 {[%emt 0:00:36]} Re7 {[%emt 0:01:59]} 27. Re4 {[%emt 0:01:09]} Rfe8 {[%emt 0:01:45]} 28. Bf5 {[%emt 0:01:13]} Rxe4 {[%emt 0:01:37]} 29. Bxe4 {[%emt 0:00:08]} Qd4+ {[%emt 0:00:54]} 30. Kf3 {[%emt 0:00:22]} Qxe4+ {[%emt 0:00:15]} 31. Kg4 {[%emt 0:00:13]} Qe6+ {[%emt 0:03:20]} 32. Kh4 {[%emt 0:00:11]} Qxh3+ {[%emt 0:00:06]} 33. Kxh3 {[%emt 0:00:07]} Re2 {[%emt 0:00:04]} 34. g4 {[%emt 0:00:54]} Rxb2 35. f5 {[%emt 0:00:47]} c5 {[%emt 0:00:20]} 36. Kg3 {[%emt 0:01:20]} c4 {[%emt 0:00:17] normal} 0-1